bitfinex-derivatives/quotes_SOLF0:USTF0_20250215
["timestamp","ask_amount","ask_price","bid_price","bid_amount"]
[1739652433526,0.03269501,193.42,193.39,5.20849597]
[1739652435425,0.03269501,193.42,193.39,0.03869597]
[1739652435628,5.20199501,193.42,193.39,0.03869597]
[1739652438028,5.1696,193.41,193.39,0.03869597]
[1739652438432,0.03269501,193.42,193.39,0.03869597]
[1739652438631,5.1698,193.4,193.39,0.03869597]
[1739652439828,12.52800328,193.4,193.39,0.03869597]
[1739652448337,7.35820328,193.4,193.31,7.53917328]
[1739652448542,13.82165585,193.45,193.31,0.18097]
[1739652448543,7.35820328,193.34,193.31,0.18097]
[1739652448840,7.35820328,193.36,193.31,0.18097]
[1739652449542,5.1716,193.34,193.32,0.03508009]
[1739652450241,0.03775545,193.35,193.32,0.03508009]
[1739652452047,5.20885545,193.35,193.32,0.03508009]
[1739652456942,0.03775545,193.35,193.32,0.03508009]
[1739652457138,0.03775545,193.35,193.33,7.35820328]
[1739652458339,0.03775545,193.35,193.32,0.03508009]
[1739652458742,5.20895545,193.35,193.32,0.03508009]
[1739652459142,0.03775545,193.35,193.32,0.03508009]
[1739652460045,0.03775545,193.35,193.32,5.20698009]
[1739652460544,0.03775545,193.35,193.32,0.03508009]
[1739652460738,5.20895545,193.35,193.32,0.03508009]
[1739652463537,0.03775545,193.35,193.32,0.03508009]
[1739652463742,5.1717,193.33,193.32,0.03508009]
[1739652464941,5.1715,193.34,193.32,0.03508009]
[1739652465544,5.1717,193.33,193.32,0.03508009]
[1739652466043,0.03775545,193.35,193.32,0.03508009]
[1739652466448,0.03775545,193.35,193.32,5.20698009]
[1739652466648,0.03775545,193.35,193.32,0.03508009]
[1739652467747,0.03775545,193.35,193.33,5.1716]
[1739652467949,0.03775545,193.35,193.33,7.35820328]
[1739652468451,0.03775545,193.35,193.33,12.52990328]
[1739652470354,0.03775545,193.35,193.34,5.1714]
[1739652475157,0.03775545,193.35,193.32,5.20678009]
[1739652476360,0.03775545,193.35,193.32,0.03508009]
[1739652478165,5.1717,193.33,193.32,0.03508009]
[1739652484565,5.1717,193.33,193.32,8.009e-05]
[1739652485163,8.90990328,193.34,193.24,0.1963]
[1739652485366,7.35820328,193.28,193.24,0.1963]
[1739652485762,12.53130328,193.28,193.24,0.1963]
[1739652486266,5.1738,193.25,193.24,0.1963]
[1739652486467,7.35820328,193.26,193.24,0.23366739]
[1739652487858,7.35820328,193.26,193.24,0.03736739]
[1739652489471,12.53180328,193.26,193.24,0.03736739]
[1739652490570,7.35820328,193.26,193.24,0.03736739]
[1739652490867,7.39134866,193.28,193.24,0.03736739]
[1739652491870,7.35820328,193.26,193.24,0.03736739]
[1739652493669,7.35820328,193.26,193.24,5.21146739]
[1739652494075,7.39134866,193.28,193.24,5.21146739]
[1739652496668,7.39134866,193.28,193.25,5.1738]
[1739652496973,7.39134866,193.28,193.24,0.03736739]
[1739652497168,7.39134866,193.28,193.24,5.21126739]
[1739652497375,7.39134866,193.28,193.24,0.03736739]
[1739652498676,7.39134866,193.28,193.24,5.21126739]
[1739652502172,7.39134866,193.28,193.25,5.1738]
[1739652502780,0.03314538,193.28,193.24,0.03736739]
[1739652503378,0.03314538,193.28,193.27,5.1733]
[1739652503771,0.03314538,193.28,193.25,5.1736]
[1739652503971,7.39134866,193.28,193.25,5.1736]
[1739652505675,7.39134866,193.28,193.24,5.21136739]
[1739652508276,7.39134866,193.28,193.25,5.1737]
[1739652509179,7.35820328,193.26,193.24,0.03736739]
[1739652512178,7.35820328,193.26,193.24,5.21136739]
[1739652513479,7.35820328,193.26,193.24,0.03736739]
[1739652513881,7.35820328,193.26,193.24,5.21146739]
[1739652516678,7.35820328,193.26,193.24,0.03736739]
[1739652519080,7.35820328,193.26,193.24,5.21136739]
[1739652519588,7.35820328,193.26,193.24,0.03736739]
[1739652519782,7.35820328,193.25,193.1,15.92506158]
[1739652519983,7.35820328,193.11,192.97,23.18474138]
[1739652520186,7.35820328,193.02,193.01,125.42110794]
[1739652520887,10.72609979,193.02,193.01,125.42110794]
[1739652521087,14.5043923,193.02,193.01,125.42110794]
[1739652521278,15.53,193.01,192.87,20.99494794]
[1739652521582,28.07220328,192.87,192.86,105.64386624]
[1739652521886,19.08411639,192.87,192.86,86.99816624]
[1739652522087,41.51395771,192.87,192.74,5.1873]
[1739652522278,7.35820328,192.82,192.7,4.8151]
[1739652522585,7.35820328,192.8,192.7,4.8151]
[1739652522786,1.3991177,192.77,192.73,5.1876]
[1739652522977,5.96434879,192.76,192.74,0.03336564]
[1739652523177,5.96434879,192.75,192.74,0.03336564]
[1739652523376,0.91254879,192.75,192.74,0.03336564]
[1739652523582,0.91254879,192.75,192.74,25.66065581]
[1739652523785,11.52677192,192.75,192.74,25.66065581]
[1739652523986,30.17832073,192.75,192.74,25.66065581]
[1739652524287,62.69596931,192.75,192.72,33.30330214]
[1739652524580,1.38843922,192.74,192.67,116.22]
[1739652524780,1.38843922,192.74,192.72,0.03274776]
[1739652524976,52.11813413,192.74,192.73,5.1876]
[1739652525176,53.50657335,192.74,192.73,5.1876]
[1739652525379,52.11813413,192.74,192.73,5.1876]
[1739652525583,41.54163413,192.74,192.73,5.1876]
[1739652525881,9.4092222,192.74,192.71,116.28]
[1739652526186,23.06383483,192.75,192.72,11.63421477]
[1739652526381,0.03767466,192.75,192.73,5.1876]
[1739652526580,7.466e-05,192.75,192.73,5.1876]
[1739652526782,16.57944707,192.76,192.72,11.63421477]
[1739652526986,4.707e-05,192.76,192.72,11.63421477]
[1739652527288,6.24032861,192.86,192.79,5.1861]
[1739652527487,1.25925842,192.84,192.72,11.63421477]
[1739652527786,6.10767944,192.83,192.72,11.63421477]
[1739652527988,0.03443293,192.8,192.78,5.1863]
[1739652528391,0.03443293,192.8,192.75,116.28]
[1739652528887,0.03443293,192.8,192.78,5.1863]
[1739652529185,0.03443293,192.8,192.74,116.32]
[1739652529683,0.03443293,192.8,192.77,5.1866]
[1739652529884,0.03443293,192.8,192.75,0.01273905]
[1739652530087,0.03443293,192.8,192.75,11.64695382]
[1739652530587,0.03443293,192.8,192.76,11.63421477]
[1739652530888,0.03443293,192.8,192.79,11.63421477]
[1739652531084,3.293e-05,192.8,192.79,11.63421477]
[1739652531388,8.67994716,192.88,192.86,5.1842]
[1739652531584,2.59270086,192.87,192.86,5.1842]
[1739652531888,2.59270086,192.9,192.82,116.34]
[1739652532089,2.59270086,192.91,192.82,116.34]
[1739652532285,2.59270086,192.92,192.84,11.63421477]
[1739652532490,86.81618697,192.87,192.85,5.21905353]
[1739652532683,86.81618697,192.87,192.84,11.63421477]
[1739652533290,86.81618697,192.87,192.85,5.1846]
[1739652533490,86.81618697,192.86,192.85,5.1846]
[1739652533992,86.81618697,192.86,192.85,116.34]
[1739652535189,86.81618697,192.86,192.85,121.5246]
[1739652535485,80.1415929,192.86,192.85,121.5246]
[1739652535686,1.29580593,192.86,192.85,121.5246]
[1739652535890,2.5916004,192.97,192.93,5.1824]
[1739652536087,8.14488698,192.96,192.93,5.1824]
[1739652536384,2.07325415,192.95,192.9,11.63421477]
[1739652536592,2.0730971,192.94,192.87,11.63421477]
[1739652536782,2.0730971,192.93,192.87,11.63421477]
[1739652536990,2.11082289,192.92,192.89,0.03917666]
[1739652537293,2.59141621,193.0,192.87,11.63421477]
[1739652537494,0.03615102,192.92,192.9,5.1832]
[1739652537791,11.63421477,193.01,192.87,11.63421477]
[1739652537989,0.03947436,192.93,192.89,0.03638218]
[1739652538188,2.59115617,192.99,192.87,11.63421477]
[1739652538389,0.03793677,192.93,192.9,582.49359229]
[1739652538588,11.63421477,193.04,192.97,5.1813]
[1739652538792,10.73582712,193.03,192.97,5.1813]
[1739652539094,10.73582712,193.02,192.97,5.1813]
[1739652539294,10.73582712,193.01,192.97,5.1813]
[1739652539593,4.66375786,193.0,192.98,5.181]
[1739652539893,2.07278127,192.99,192.97,0.03549348]
[1739652540090,2.07278127,192.98,192.9,535.48164356]
[1739652540394,0.03831048,193.0,192.99,5.1806]
[1739652540595,204.63421477,193.08,192.93,11.63421477]
[1739652540796,0.03383759,193.01,193.0,5.1805]
[1739652541001,6.07285088,193.06,192.98,0.0353816]
[1739652541485,4.6878,193.07,192.98,0.0353816]
[1739652541690,7.27776508,193.07,192.98,0.0353816]
[1739652542087,4.6878,193.07,192.98,0.0353816]
[1739652542286,0.03983873,193.04,192.98,0.0353816]
[1739652543290,0.03983873,193.04,193.03,5.1797]
[1739652544400,3.873e-05,193.04,193.03,5.1797]
[1739652545391,2.58943556,193.14,193.09,5.178]
[1739652545601,6.080668,193.13,193.09,5.178]
[1739652545800,3.172,193.15,193.09,5.178]
[1739652546000,6.08071114,193.14,193.09,5.178]
[1739652546298,8.67178976,193.13,193.05,11.63421477]
[1739652546499,0.03296074,193.13,193.1,0.03695381]
[1739652547201,0.03296074,193.13,193.12,5.1773]
[1739652547405,0.03296074,193.13,193.1,0.03695381]
[1739652547801,1.29445607,193.12,193.1,0.03695381]
[1739652548000,1.29445607,193.11,193.1,0.03695381]
[1739652548202,1.29445616,193.11,193.1,0.03695381]
[1739652548394,1.29445616,193.11,193.1,5.21475381]
[1739652550407,3.36562093,193.11,193.1,5.21475381]
[1739652552610,3.36562093,193.11,193.05,11.63421477]
[1739652552809,3.36562093,193.1,193.05,11.63421477]
[1739652553102,1.29445616,193.09,193.05,11.63421477]
[1739652553407,5.616e-05,193.08,193.05,11.63421477]
[1739652553608,10.75969164,193.15,193.05,11.63421477]
[1739652553809,10.75969164,193.14,193.13,5.1768]
[1739652554006,2.07114588,193.14,193.13,5.1768]
[1739652554607,2.07114588,193.14,193.12,0.0388066]
[1739652554803,2.07114588,193.13,193.12,0.0388066]
[1739652555007,4.65987562,193.13,193.12,0.0388066]
[1739652555207,2.07114588,193.13,193.12,0.0388066]
[1739652555607,4.65987562,193.13,193.12,0.0388066]
[1739652555808,2.07114588,193.13,193.12,0.0388066]
[1739652556004,4.65987562,193.13,193.12,0.0388066]
[1739652556208,2.07114588,193.13,193.12,0.0388066]
[1739652556713,2.07114588,193.13,193.12,5.2161066]
[1739652558407,2.071118,193.13,193.12,5.2161066]
[1739652559417,8.09813751,193.13,193.12,5.2161066]
[1739652559817,2.071118,193.13,193.12,5.2161066]
[1739652560619,13.27778591,193.13,193.08,5.1782]
[1739652560819,8.10078591,193.12,193.04,116.3]
[1739652561118,8.10078591,193.11,193.04,116.3]
[1739652561321,2.071118,193.1,193.04,116.3]
[1739652561520,2.071118,193.09,193.04,116.3]
[1739652561721,2.071118,193.08,193.05,0.03775988]
[1739652561913,2.071118,193.07,193.05,0.03775988]
[1739652562119,1.8e-05,193.06,193.05,5.21695988]
[1739652562321,0.03947929,193.09,193.05,11.67197465]
[1739652562923,0.03947929,193.09,193.08,5.1784]
[1739652563619,0.03947929,193.09,193.07,5.1786]
[1739652565318,1.29462163,193.08,193.07,5.1786]
[1739652566835,1.29462163,193.08,193.05,5.21685988]
[1739652567129,1.29462163,193.07,193.05,5.21685988]
[1739652567329,1.29462163,193.06,193.05,5.21685988]
[1739652567729,1.29462163,193.06,193.05,0.03775988]
[1739652568533,7.34177975,193.06,193.05,0.03775988]
[1739652569032,7.3419898,193.06,193.05,0.03775988]
[1739652570423,7.3419898,193.06,193.05,5.21695988]
[1739652571129,7.3419898,193.06,193.05,0.03775988]
[1739652571731,7.3419898,193.06,193.05,5.21695988]
[1739652572226,9.41381878,193.06,193.05,5.21695988]
[1739652573132,10.53483127,193.06,193.05,5.21695988]
[1739652574035,9.41381878,193.06,193.05,5.21695988]
[1739652574331,10.53483127,193.06,193.05,5.21695988]
[1739652574730,1.878e-05,193.06,193.05,5.21695988]
[1739652576435,1.12103127,193.06,193.05,5.21695988]
[1739652576632,1.13202691,193.06,193.05,5.21695988]
[1739652577039,0.03947929,193.09,193.05,5.21695988]
[1739652578036,5.21767929,193.09,193.05,5.21695988]
[1739652578339,0.03947929,193.09,193.05,5.21695988]
[1739652578536,16.68834654,193.07,193.01,5.1802]
[1739652578739,5.05413177,193.06,192.94,116.22]
[1739652578936,5.05413177,193.06,192.99,5.1805]
[1739652579131,5.1794,193.04,192.94,116.22]
[1739652579332,5.05413177,193.05,192.94,116.22]
[1739652579743,0.03537392,193.01,192.98,0.03615115]
[1739652579941,0.03537392,193.01,193.0,5.1805]
[1739652584747,7.80690574,193.01,193.0,5.1805]
[1739652585141,2.10751669,193.01,193.0,5.1805]
[1739652585347,7.80506175,193.01,193.0,5.1805]
[1739652586747,2.10751669,193.01,193.0,5.1805]
[1739652586944,3.40260789,193.01,193.0,5.1805]
[1739652590152,3.40260789,193.01,192.99,5.1807]
[1739652590354,3.36723397,193.0,192.99,5.1807]
[1739652590547,3.36723397,193.0,192.98,0.03615115]
[1739652590749,3.36723397,192.99,192.98,5.21725115]
[1739652594148,3.397e-05,192.99,192.98,5.21725115]
[1739652595245,0.03537392,193.01,192.98,0.03615115]
[1739652595454,0.03537392,193.01,193.0,5.1805]
[1739652599354,0.03537392,193.01,192.98,0.03615115]
[1739652599355,5.60562905,193.08,193.07,5.1786]
[1739652599651,5.60562905,193.08,192.99,11.63421477]
[1739652599849,5.1781,193.09,192.99,11.63421477]
[1739652600157,5.60887712,193.08,192.99,11.63421477]
[1739652600446,0.0339335,193.05,193.04,5.1792]
[1739652600653,5.60983953,193.1,193.04,5.1792]
[1739652600846,0.03598818,193.06,193.02,0.03397757]
[1739652601053,11.63421477,193.04,192.94,116.22]
[1739652601849,5.1802,193.02,192.96,5.1815]
[1739652602355,10.82060184,193.01,192.97,0.03899086]
[1739652602649,11.66863305,193.01,192.97,0.03899086]
[1739652602850,11.66863305,193.01,192.94,116.22]
[1739652603052,5.60378545,193.0,192.94,116.22]
[1739652604055,5.1808,192.99,192.95,0.03437185]
[1739652604251,2.07296556,192.98,192.95,0.03437185]
[1739652604554,2.07296556,192.97,192.95,0.03437185]
[1739652604747,2.07296556,192.96,192.95,0.03437185]
[1739652606157,3.36852734,192.96,192.95,5.21627185]
[1739652606554,1.29556178,192.96,192.95,5.21627185]
[1739652607254,3.36852734,192.96,192.95,5.21627185]
[1739652607459,1.29556178,192.96,192.95,5.21627185]
[1739652608057,3.36852734,192.96,192.95,5.21627185]
[1739652608355,1.29556178,192.96,192.95,5.21627185]
[1739652608756,3.36832735,192.96,192.95,5.21627185]
[1739652609153,3.36830992,192.96,192.95,5.21627185]
[1739652609359,1.29551052,192.96,192.95,5.21627185]
[1739652610559,1.6506,193.0,192.98,5.1809]
[1739652610759,3.36792177,192.99,192.98,5.1809]
[1739652611361,1.29535453,192.99,192.98,5.1809]
[1739652611755,0.03441828,193.01,192.96,11.63421477]
[1739652611954,1.29509407,193.0,192.96,11.63421477]
[1739652612159,0.03441828,193.01,192.96,11.63421477]
[1739652612360,1.29509047,193.0,192.99,5.1808]
[1739652612659,0.03441828,193.01,192.96,11.63421477]
[1739652613363,0.03441828,193.01,193.0,5.1805]
[1739652613557,1.32945034,193.01,193.0,5.1805]
[1739652614356,0.03441828,193.01,193.0,5.1805]
[1739652614559,1.32942671,193.01,193.0,5.1805]
[1739652619167,1.32942671,193.01,192.99,5.1807]
[1739652619373,3.36735199,193.0,192.95,0.03437185]
[1739652619666,3.36735199,192.99,192.95,0.03437185]
[1739652619866,3.36751749,192.98,192.95,0.03437185]
[1739652620067,3.36766297,192.97,192.95,0.03437185]
[1739652620267,1.29500843,192.96,192.95,5.21627185]
[1739652621369,8.43e-06,192.96,192.95,5.21627185]
[1739652621563,0.03441828,193.01,193.0,5.1805]
[1739652621763,2.10663917,193.01,193.0,5.1805]
[1739652625069,2.10666632,193.01,193.0,5.1805]
[1739652627871,2.10666632,193.01,192.96,11.63421477]
[1739652628072,2.07224804,193.0,192.95,0.03437185]
[1739652628273,2.07224804,192.99,192.95,0.03437185]
[1739652628573,2.07224804,192.98,192.95,0.03437185]
[1739652628768,0.03441828,193.01,192.96,5.1816]
[1739652629066,2.07253796,193.0,192.96,5.1816]
[1739652629271,2.07253796,192.99,192.96,5.1816]
[1739652629473,2.07253796,192.98,192.96,5.1816]
[1739652629670,2.07253796,192.97,192.96,5.1816]
[1739652630869,2.07258835,192.97,192.96,5.1816]
[1739652633378,3.36796645,192.97,192.96,5.1816]
[1739652634976,3.36804163,192.97,192.96,5.1816]
[1739652637076,3.36804163,192.97,192.95,5.21617185]
[1739652637273,8.97372674,192.96,192.9,257.62295237]
[1739652637475,11.63421477,192.91,192.9,122.17871237]
[1739652637778,20.60794151,192.91,192.9,54.89807868]
[1739652637975,25.79084151,192.91,192.9,54.89807868]
[1739652638978,20.60794151,192.91,192.89,0.03357634]
[1739652639177,14.15692674,192.9,192.89,0.03357634]
[1739652640080,37.0752886,192.9,192.89,0.03357634]
[1739652640980,208.26159756,192.9,192.77,1.5546]
[1739652641180,3.37056349,192.89,192.83,5.1851]
[1739652641377,3.37056349,192.88,192.83,5.1851]
[1739652641576,3.37056349,192.87,192.83,5.1851]
[1739652641777,3.37057919,192.86,192.83,5.1851]
[1739652641977,1.29637661,192.85,192.84,5.1848]
[1739652642276,0.03932713,192.86,192.83,0.0349895]
[1739652642476,0.03932713,192.86,192.81,11.63421477]
[1739652642673,0.03932713,192.86,192.83,0.03816469]
[1739652643079,0.03932713,192.86,192.85,5.1846]
[1739652644083,84.58511456,192.96,192.83,0.03816469]
[1739652644286,2.07363768,192.95,192.87,5.1838]
[1739652644784,2.07363768,192.94,192.87,5.1838]
[1739652644988,2.07363768,192.93,192.87,5.1838]
[1739652645187,2.10756441,192.92,192.89,0.03977536]
[1739652645383,0.03392673,192.92,192.89,0.03977536]
[1739652645584,5.21662673,192.92,192.89,0.03977536]
[1739652645783,2.07377421,192.91,192.89,0.03977536]
[1739652645986,2.07377421,192.9,192.89,0.03977536]
[1739652646685,7.25697421,192.9,192.89,0.03977536]
[1739652647279,5.1832,192.9,192.89,0.03977536]
[1739652647489,7.25732892,192.9,192.89,0.03977536]
[1739652647689,7.25733087,192.9,192.89,0.03977536]
[1739652648290,5.1837,192.89,192.83,5.185]
[1739652648493,2.07413087,192.88,192.83,5.185]
[1739652648685,2.07434306,192.87,192.81,5.1854]
[1739652648893,2.07434306,192.86,192.8,116.32]
[1739652649287,5.1835,192.9,192.8,116.32]
[1739652649590,0.03607703,192.85,192.81,0.03285562]
[1739652649890,0.03607703,192.85,192.83,5.1851]
[1739652650190,0.03607703,192.85,192.81,0.03285562]
[1739652650388,0.03607703,192.85,192.82,5.1851]
[1739652650587,0.03607703,192.85,192.81,0.03285562]
[1739652650995,0.03607703,192.85,192.81,11.66707039]
[1739652651496,0.03607703,192.85,192.84,5.1848]
[1739652652600,0.03607703,192.85,192.81,11.66707039]
[1739652653499,0.03607703,192.85,192.84,5.1848]
[1739652656802,0.03607703,192.85,192.81,11.66707039]
[1739652657001,0.03607703,192.85,192.82,5.1852]
[1739652659103,0.03607703,192.85,192.83,5.1851]
[1739652659703,0.03607703,192.85,192.84,5.1848]
[1739652661307,2.07379459,192.93,192.87,5.1838]
[1739652661506,1.29610221,192.92,192.87,5.1838]
[1739652661708,1.29610221,192.91,192.87,5.1838]
[1739652661907,1.29610221,192.9,192.87,5.1838]
[1739652662100,1.29610221,192.89,192.87,5.1838]
[1739652662299,0.03273742,192.9,192.87,5.21778438]
[1739652662499,0.03273742,192.9,192.88,5.1837]
[1739652662709,0.03273742,192.9,192.87,0.03398438]
[1739652663009,1.29610143,192.89,192.87,0.03398438]
[1739652663210,0.03273742,192.9,192.87,0.03398438]
[1739652663408,1.29609503,192.89,192.87,0.03398438]
[1739652663610,0.03273742,192.9,192.87,0.03398438]
[1739652663813,1.29610674,192.89,192.87,0.03398438]
[1739652664014,0.03273742,192.9,192.87,0.03398438]
[1739652664015,3.3700803,192.88,192.87,0.03398438]
[1739652664201,3.3700803,192.88,192.8,116.32]
[1739652664405,1.29610674,192.87,192.8,116.32]
[1739652664602,1.29610674,192.86,192.8,116.32]
[1739652664910,84.58511456,192.89,192.8,116.32]
[1739652665111,3.37041351,192.88,192.8,116.32]
[1739652665308,0.03685813,192.86,192.83,5.22184512]
[1739652665612,1.29631289,192.85,192.83,0.03674512]
[1739652665819,1.29642838,192.84,192.83,0.03674512]
[1739652667511,1.29642871,192.85,192.83,0.03674512]
[1739652667809,1.29642871,192.84,192.83,0.03674512]
[1739652668904,84.62197269,192.86,192.83,5.22184512]
[1739652669111,1.2963441,192.85,192.83,0.03674512]
[1739652669310,1.29632468,192.84,192.83,0.03674512]
[1739652669504,1.29632363,192.84,192.83,0.03674512]
[1739652669707,84.62197269,192.86,192.83,0.03674512]
[1739652669904,1.29631085,192.85,192.83,0.03674512]
[1739652670114,84.62197269,192.86,192.83,5.22184512]
[1739652670413,1.29631081,192.85,192.83,5.22184512]
[1739652670611,1.29631081,192.84,192.83,5.22184512]
[1739652671009,1.29631081,192.84,192.83,0.03674512]
[1739652671814,1.29636269,192.84,192.83,0.03674512]
[1739652672314,112.7316627,192.84,192.83,0.03674512]
[1739652672513,112.7316627,192.84,192.83,5.22184512]
[1739652672810,112.7316627,192.84,192.83,0.03674512]
[1739652673114,114.80593872,192.84,192.83,0.03674512]
[1739652673312,3.37063871,192.84,192.83,0.03674512]
[1739652674920,1.29636269,192.84,192.83,0.03674512]
[1739652675217,3.37063871,192.84,192.83,0.03674512]
[1739652675412,1.29636269,192.84,192.83,0.03674512]
[1739652675614,0.03685813,192.86,192.83,0.03674512]
[1739652675818,3.37072939,192.85,192.83,0.03674512]
[1739652676017,3.37072939,192.84,192.83,0.03674512]
[1739652680522,3.37072939,192.84,192.83,5.22184512]
[1739652681616,8.98175644,192.84,192.83,5.22184512]
[1739652681922,8.98171022,192.84,192.83,5.22184512]
[1739652682220,3.37068317,192.84,192.83,5.22184512]
[1739652684319,114.80598318,192.84,192.83,5.22184512]
[1739652685525,87.95579773,192.84,192.83,5.22184512]
[1739652686727,93.4814886,192.84,192.83,0.03674512]
[1739652686928,93.48175226,192.84,192.83,0.03674512]
[1739652687225,184.15810654,192.84,192.83,0.03674512]
[1739652690126,175.26146884,192.84,192.83,0.03674512]
[1739652690427,184.16050644,192.84,192.83,0.03674512]
[1739652690623,180.78961575,192.84,192.83,0.03674512]
[1739652690830,184.16049054,192.84,192.83,0.03674512]
[1739652691227,180.78961575,192.84,192.83,0.03674512]
[1739652691432,184.16049054,192.84,192.83,0.03674512]
[1739652692431,184.16216902,192.84,192.83,0.03674512]
[1739652694326,175.26146884,192.84,192.83,0.03674512]
[1739652694530,184.16171726,192.84,192.83,0.03674512]
[1739652695929,184.16171726,192.84,192.77,24.5546]
[1739652696230,7.43609245,192.81,192.77,24.5546]
[1739652696431,3.3708744,192.8,192.77,29.7411]
[1739652696637,3.3708744,192.79,192.77,29.7411]
[1739652696934,3.3708744,192.78,192.77,29.7411]
[1739652697531,3.3708744,192.78,192.77,23.0]
[1739652699238,3.3708744,192.78,192.77,28.1867]
[1739652699926,30.22105985,192.78,192.77,28.1867]
[1739652701235,26.58035985,192.78,192.77,35.62279245]
[1739652702035,85.22931072,192.79,192.78,5.1864]
[1739652703033,0.0395539,192.8,192.79,5.1862]
[1739652703334,0.0395539,192.8,192.79,12.62229245]
[1739652707640,348.42438645,192.88,192.84,5.1847]
[1739652707839,348.42438645,192.88,192.84,12.62079245]
[1739652708241,348.42438645,192.88,192.85,5.1845]
[1739652708742,7.43609245,192.86,192.85,1.461e-05]
[1739652709042,5.1864,192.78,192.7,7.43609245]
[1739652709236,7.43609245,192.78,192.72,7.43609245]
[1739652709544,7.43609245,192.8,192.72,7.43609245]
[1739652709940,0.03620903,192.78,192.74,0.02146129]
[1739652712140,7.47230148,192.78,192.74,0.02146129]
[1739652712341,7.43609245,192.76,192.74,0.02146129]
[1739652713141,1.29709382,192.75,192.74,0.02146129]
[1739652713335,6.48429382,192.75,192.74,0.02146129]
[1739652713542,1.29709382,192.75,192.68,7.43609245]
[1739652713741,8.73318627,192.74,192.68,7.43609245]
[1739652713940,6.48499382,192.73,192.68,7.43609245]
[1739652714241,1.29709382,192.72,192.68,7.43609245]
[1739652714546,1.29709382,192.71,192.7,7.43609245]
[1739652715245,5.1858,192.81,192.7,7.43609245]
[1739652715443,84.98204259,192.82,192.76,7.43609245]
[1739652715744,4.4669,192.83,192.76,7.43609245]
[1739652716445,0.03933014,192.81,192.78,0.03475814]
[1739652721552,0.03933014,192.81,192.78,7.47085059]
[1739652721747,0.03933014,192.81,192.8,7.43609245]
[1739652722149,7.47542259,192.81,192.68,7.43609245]
[1739652722352,7.43609245,192.79,192.7,7.43609245]
[1739652722553,7.43609245,192.79,192.72,7.43609245]
[1739652722747,5.1865,192.78,192.72,7.43609245]
[1739652722955,7.43609245,192.79,192.72,7.43609245]
[1739652723453,0.03865437,192.77,192.74,7.43609245]
[1739652723950,0.03865437,192.77,192.76,7.43609245]
[1739652724149,84.98204259,192.82,192.76,7.43609245]
[1739652724356,84.98204259,192.82,192.78,7.43609245]
[1739652724553,0.03721619,192.81,192.78,7.43609245]
[1739652725656,0.03721619,192.81,192.72,11.62346298]
[1739652725854,87.27504259,192.85,192.72,11.62346298]
[1739652726057,0.03413331,192.78,192.72,11.62346298]
[1739652726562,0.03413331,192.78,192.75,5.1871]
[1739652726952,0.03413331,192.78,192.73,5.1875]
[1739652727158,0.03413331,192.78,192.72,11.62346298]
[1739652727159,1.29673236,192.77,192.72,11.62346298]
[1739652727357,0.03413331,192.78,192.72,11.62346298]
[1739652727554,1.29671675,192.77,192.72,11.62346298]
[1739652727761,0.03413331,192.78,192.72,11.62346298]
[1739652727960,1.29679294,192.77,192.72,11.62346298]
[1739652728164,1.29679294,192.76,192.72,11.62346298]
[1739652728361,0.03413331,192.78,192.74,5.1875]
[1739652728563,1.29681738,192.77,192.74,5.1875]
[1739652728762,1.29681738,192.76,192.74,5.1875]
[1739652728958,0.03413331,192.78,192.74,5.1875]
[1739652729159,1.29681102,192.77,192.72,11.62346298]
[1739652729359,0.03413331,192.78,192.75,5.1872]
[1739652729560,1.29676706,192.77,192.75,5.1872]
[1739652729863,1.29676007,192.76,192.72,11.62346298]
[1739652730059,1.29676007,192.75,192.69,11.62346298]
[1739652730259,1.29676007,192.74,192.69,11.62346298]
[1739652730462,1.29676007,192.73,192.69,11.62346298]
[1739652730761,0.03887555,192.74,192.71,5.1881]
[1739652730963,1.29700057,192.73,192.71,5.1881]
[1739652731160,0.03887555,192.74,192.71,5.1881]
[1739652731360,1.29700311,192.73,192.71,5.1881]
[1739652731562,0.03887555,192.74,192.71,5.1881]
[1739652731761,1.29700311,192.73,192.71,5.1881]
[1739652732062,0.03887555,192.74,192.71,5.1881]
[1739652732264,0.03887555,192.74,192.69,11.62346298]
[1739652732265,1.29700226,192.73,192.69,11.62346298]
[1739652732463,1.29703223,192.72,192.69,5.1886]
[1739652732666,1.29703223,192.71,192.69,5.1886]
[1739652732863,0.03887555,192.74,192.69,5.1886]
[1739652733058,1.29713277,192.73,192.67,5.1891]
[1739652733259,0.03887555,192.74,192.66,11.62346298]
[1739652733260,1.29713277,192.72,192.66,11.62346298]
[1739652733457,1.29713277,192.71,192.65,116.4]
[1739652733661,1.29713277,192.7,192.66,5.1897]
[1739652733862,1.29713277,192.69,192.65,116.4]
[1739652734162,1.29713277,192.68,192.65,116.4]
[1739652734363,1.29713277,192.67,192.65,116.4]
[1739652734562,0.03803065,192.7,192.65,116.4]